[Event "GER-ch Youth U18w 2019"]
[Site "Willingen"]
[Date "2019.06.14"]
[Round "8.10"]
[White "Tampe, Friederike"]
[Black "Schiewe, Nadin"]
[Result "1-0"]
[ECO "B07"]
[WhiteElo "1512"]
[BlackElo "1608"]
[Annotator "NA"]
[PlyCount "95"]
[EventDate "2019.06.07"]
[EventType "swiss"]
[EventRounds "9"]
[EventCountry "GER"]
[SourceTitle "playchess.com"]
[Source "ChessBase"]
[SourceQuality "1"]
[TimeControl "40/5400+30:1800+30"]

1. e4 {[%emt 0:00:00]} d6 {[%emt 0:00:00]} 2. d4 {[%emt 0:00:00]} Nf6 {[%emt 0:00:00]} 3. Nc3 {[%emt 0:00:00]} g6 {[%emt 0:00:12]} 4. Bg5 {[%emt 0:00:08]} Nbd7 {[%emt 0:01:08]} 5. Nf3 {[%emt 0:03:22]} Bg7 {[%emt 0:02:58]} 6. e5 {[%emt 0:01:57]} dxe5 {[%emt 0:00:51]} 7. dxe5 {[%emt 0:00:05]} Ng4 {[%emt 0:00:50]} 8. e6 {[%emt 0:01:11]} fxe6 {[%emt 0:02:24]} 9. Bc4 {[%emt 0:00:47]} Nde5 {[%emt 0:08:53]} 10. Qxd8+ {[%emt 0:01:31]} Kxd8 {[%emt 0:00:07]} 11. Nxe5 {[%emt 0:00:57]} Bxe5 {[%emt 0:02:23]} 12. h3 {[%emt 0:03:04]} Nf6 {[%emt 0:01:46]} 13. O-O {[%emt 0:01:50]} Bxc3 {[%emt 0:05:23]} 14. bxc3 {[%emt 0:00:19]} Ne4 {[%emt 0:00:15]} 15. Bh6 {[%emt 0:05:51]} Rg8 {[%emt 0:04:48]} 16. Rad1+ {[%emt 0:01:53]} Ke8 {[%emt 0:02:01]} 17. Rd3 {[%emt 0:03:28]} c6 {[%emt 0:09:16]} 18. Rfd1 {[%emt 0:04:30]} Nd6 {[%emt 0:03:05]} 19. Bb3 {[%emt 0:04:57]} b5 {[%emt 0:01:23]} 20. Re1 {[%emt 0:02:16]} c5 {[%emt 0:06:25]} 21. Bxe6 {[%emt 0:05:31]} Bxe6 {[%emt 0:00:15]} 22. Rxe6 {[%emt 0:00:04]} Nf5 {[%emt 0:00:48]} 23. Bf4 {[%emt 0:03:35]} Kf7 {[%emt 0:04:16]} 24. Re5 {[%emt 0:03:59]} Rgc8 {[%emt 0:10:50]} 25. Rdd5 {[%emt 0:04:59]} Nd6 {[%emt 0:06:39]} 26. Rxc5 {[%emt 0:04:25]} Rxc5 {[%emt 0:01:15]} 27. Rxc5 {[%emt 0:00:05]} Ne4 {[%emt 0:00:18]} 28. Rc7 {[%emt 0:03:46]} a6 {[%emt 0:03:26]} 29. Kf1 {[%emt 0:02:37]} Rd8 {[%emt 0:03:05]} 30. Ke2 {[%emt 0:00:24]} Nf6 {[%emt 0:00:46]} 31. c4 {[%emt 0:05:33]} Rd4 {[%emt 0:02:43]} 32. Bg5 {[%emt 0:04:20]} Rxc4 {[%emt 0:07:34]} 33. Rxc4 {[%emt 0:00:17]} bxc4 {[%emt 0:00:05]} 34. Ke3 {[%emt 0:01:08]} Nd5+ {[%emt 0:02:08]} 35. Kd4 {[%emt 0:00:10]} Nb4 {[%emt 0:00:21]} 36. c3 Nc2+ {[%emt 0:01:38]} 37. Kxc4 {[%emt 0:00:47]} Ne1 {[%emt 0:00:09]} 38. g3 {[%emt 0:00:47]} Ke6 {[%emt 0:00:53]} 39. Kc5 {[%emt 0:00:50]} Nd3+ {[%emt 0:00:35]} 40. Kb6 {[%emt 0:00:15]} Nxf2 {[%emt 0:00:12]} 41. c4 {[%emt 0:31:24]} Nxh3 {[%emt 0:34:27]} 42. Be3 h6 {[%emt 0:02:28]} 43. c5 {[%emt 0:00:46]} Kd7 {[%emt 0:00:17]} 44. c6+ {[%emt 0:00:42]} Kc8 {[%emt 0:00:19]} 45. Kxa6 {[%emt 0:00:59]} Ng5 {[%emt 0:00:22]} 46. Bxg5 {[%emt 0:00:17]} hxg5 {[%emt 0:00:05]} 47. Kb5 e5 {[%emt 0:00:39]} 48. Kc5 {[%emt 0:00:12] normal} 1-0

[Event "GER-ch Youth U18w 2019"]
[Site "Willingen"]
[Date "2019.06.14"]
[Round "8.11"]
[White "Kuemmel, Tina"]
[Black "Kadach, Maria"]
[Result "1/2-1/2"]
[ECO "D78"]
[WhiteElo "1446"]
[BlackElo "1448"]
[Annotator "NA"]
[PlyCount "70"]
[EventDate "2019.06.07"]
[EventType "swiss"]
[EventRounds "9"]
[EventCountry "GER"]
[SourceTitle "playchess.com"]
[Source "ChessBase"]
[SourceQuality "1"]
[TimeControl "40/5400+30:1800+30"]

1. Nf3 {[%emt 0:00:00]} Nf6 {[%emt 0:00:00]} 2. g3 {[%emt 0:00:00]} g6 {[%emt 0:00:25]} 3. Bg2 {[%emt 0:00:00]} Bg7 {[%emt 0:00:33]} 4. O-O {[%emt 0:00:00]} d5 {[%emt 0:00:32]} 5. d4 {[%emt 0:00:09]} O-O {[%emt 0:00:32]} 6. c4 c6 {[%emt 0:06:51]} 7. b3 {[%emt 0:01:56]} Nbd7 {[%emt 0:01:21]} 8. Bb2 {[%emt 0:01:49]} Re8 9. Nc3 {[%emt 0:06:45]} e6 {[%emt 0:02:39]} 10. Re1 {[%emt 0:08:43]} Ne4 11. Qc2 {[%emt 0:03:06]} f5 {[%emt 0:10:55]} 12. Rad1 {[%emt 0:13:46]} b6 {[%emt 0:15:06]} 13. Nd2 Ba6 {[%emt 0:03:33]} 14. e3 {[%emt 0:06:39]} Qc7 {[%emt 0:03:02]} 15. cxd5 {[%emt 0:11:39]} cxd5 16. f3 {[%emt 0:00:43]} Nxc3 {[%emt 0:04:11]} 17. Bxc3 {[%emt 0:00:17]} Rac8 {[%emt 0:12:43]} 18. Rc1 Red8 19. Qb2 {[%emt 0:02:07]} Qd6 {[%emt 0:04:32]} 20. e4 {[%emt 0:01:37]} fxe4 {[%emt 0:00:37]} 21. fxe4 {[%emt 0:02:23]} Rf8 {[%emt 0:03:53]} 22. e5 {[%emt 0:02:35]} Qb8 {[%emt 0:02:33]} 23. Bh3 {[%emt 0:02:16]} Rfe8 {[%emt 0:02:47]} 24. Nf3 Bh6 25. Bd2 {[%emt 0:03:04]} Bxd2 {[%emt 0:01:57]} 26. Qxd2 {[%emt 0:00:16]} Re7 {[%emt 0:02:48]} 27. Ng5 {[%emt 0:01:07]} Rce8 {[%emt 0:06:56]} 28. Qf4 Nf8 {[%emt 0:03:36]} 29. Rc6 {[%emt 0:05:21]} Qb7 {[%emt 0:02:01]} 30. Rec1 {[%emt 0:02:21]} h6 {[%emt 0:02:18]} 31. Nf3 {[%emt 0:05:42]} Rh7 {[%emt 0:03:28]} 32. Rd6 {[%emt 0:03:19]} Qf7 {[%emt 0:03:08]} 33. Qe3 g5 {[%emt 0:00:28]} 34. Rc2 {[%emt 0:06:36]} Rg7 {[%emt 0:01:33]} 35. Rf2 Qg6 {normal} 1/2-1/2

[Event "GER-ch Youth U18w 2019"]
[Site "Willingen"]
[Date "2019.06.14"]
[Round "8.12"]
[White "Peters, Jenna Maria Lara"]
[Black "Gauchel, Verena"]
[Result "1/2-1/2"]
[ECO "B03"]
[WhiteElo "1594"]
[BlackElo "1534"]
[Annotator "NA"]
[PlyCount "55"]
[EventDate "2019.06.07"]
[EventType "swiss"]
[EventRounds "9"]
[EventCountry "GER"]
[SourceTitle "playchess.com"]
[Source "ChessBase"]
[SourceQuality "1"]
[TimeControl "40/5400+30:1800+30"]

1. e4 Nf6 {[%emt 0:00:00]} 2. e5 {[%emt 0:00:00]} Nd5 3. d4 d6 {[%emt 0:00:03]} 4. c4 {[%emt 0:00:00]} Nb6 5. exd6 {[%emt 0:00:08]} cxd6 {[%emt 0:00:57]} 6. Nc3 {[%emt 0:00:23]} g6 {[%emt 0:01:13]} 7. Be3 {[%emt 0:02:04]} Bg7 {[%emt 0:00:58]} 8. Rc1 {[%emt 0:02:35]} O-O {[%emt 0:02:09]} 9. b3 {[%emt 0:01:51]} Nc6 {[%emt 0:03:20]} 10. Nf3 {[%emt 0:06:58]} Bg4 {[%emt 0:03:23]} 11. Be2 {[%emt 0:00:23]} Rc8 {[%emt 0:10:02]} 12. d5 {[%emt 0:04:58]} Ne5 {[%emt 0:07:50]} 13. Nxe5 {[%emt 0:02:54]} Bxe2 {[%emt 0:01:41]} 14. Nxe2 {[%emt 0:00:25]} Bxe5 {[%emt 0:00:54]} 15. Bd4 {[%emt 0:02:03]} Nd7 {[%emt 0:05:24]} 16. f4 {[%emt 0:03:27]} Qa5+ {[%emt 0:11:06]} 17. Qd2 {[%emt 0:02:03]} Qxd2+ {[%emt 0:04:23]} 18. Kxd2 Bg7 {[%emt 0:06:32]} 19. Bxg7 {[%emt 0:09:22]} Kxg7 {[%emt 0:00:02]} 20. Rhe1 {[%emt 0:04:34]} Nc5 {[%emt 0:06:40]} 21. Nd4 {[%emt 0:03:19]} Rfe8 {[%emt 0:01:06]} 22. Re2 {[%emt 0:01:11]} a6 {[%emt 0:01:16]} 23. Rce1 {[%emt 0:03:41]} Rc7 {[%emt 0:05:53]} 24. g4 {[%emt 0:00:49]} h6 {[%emt 0:07:22]} 25. h4 {[%emt 0:07:03]} Kf8 {[%emt 0:03:07]} 26. f5 {[%emt 0:09:50]} Rd7 {[%emt 0:01:54]} 27. f6 {[%emt 0:10:48]} a5 28. g5 {normal} 1/2-1/2

[Event "GER-ch Youth U18w 2019"]
[Site "Willingen"]
[Date "2019.06.15"]
[Round "9.1"]
[White "Poetsch, Leonore"]
[Black "Schulze, Lara"]
[Result "0-1"]
[ECO "C07"]
[WhiteElo "1982"]
[BlackElo "2160"]
[Annotator "ChessBase"]
[PlyCount "36"]
[EventDate "2019.06.07"]
[EventType "swiss"]
[EventRounds "9"]
[EventCountry "GER"]
[SourceTitle "playchess.com"]
[Source "ChessBase"]
[SourceQuality "1"]
[TimeControl "40/5400+30:1800+30"]

1. e4 {[%emt 0:00:00]} e6 {[%emt 0:00:00]} 2. d4 {[%emt 0:00:00]} d5 {[%emt 0:00:00]} 3. Nd2 {[%emt 0:00:00]} c5 {[%emt 0:00:00]} 4. Ngf3 {[%emt 0:00:00]} cxd4 {[%emt 0:00:00]} 5. Nxd4 {[%emt 0:00:00]} Nc6 {[%emt 0:00:00]} 6. c3 {[%emt 0:04:11]} Nxd4 {[%emt 0:03:23]} 7. cxd4 {[%emt 0:00:04]} dxe4 {[%emt 0:00:25]} 8. Nxe4 {[%emt 0:00:16]} Bd7 {[%emt 0:01:48]} 9. Be3 {[%emt 0:05:45]} Bb4+ {[%emt 0:06:59]} 10. Nc3 {[%emt 0:02:20]} Nf6 {[%emt 0:01:29]} 11. Qb3 {[%emt 0:01:57]} Nd5 {[%emt 0:07:16]} 12. Bc4 {[%emt 0:05:06]} Bxc3+ {[%emt 0:09:08]} 13. bxc3 {[%emt 0:00:57]} Nxe3 {[%emt 0:00:08]} 14. fxe3 {[%emt 0:00:04]} Qh4+ {[%emt 0:00:18]} 15. Ke2 {[%emt 0:03:40]} Bc6 {[%emt 0:06:09]} 16. Rhg1 {[%emt 0:07:19]} Qxh2 {[%emt 0:04:59]} 17. a4 {[%emt 0:02:19]} Bxg2 {[%emt 0:09:41]} 18. Kd3 {[%emt 0:00:05] normal} f5 {[%emt 0:05:58] normal} 0-1

[Event "GER-ch Youth U18w 2019"]
[Site "Willingen"]
[Date "2019.06.15"]
[Round "9.2"]
[White "Arnhold, Steffi"]
[Black "Ziegenfuss, Antonia"]
[Result "0-1"]
[ECO "B23"]
[WhiteElo "1996"]
[BlackElo "2111"]
[Annotator "ChessBase"]
[PlyCount "45"]
[EventDate "2019.06.07"]
[EventType "swiss"]
[EventRounds "9"]
[EventCountry "GER"]
[SourceTitle "playchess.com"]
[Source "ChessBase"]
[SourceQuality "1"]
[TimeControl "40/5400+30:1800+30"]

1. e4 {[%emt 0:00:00]} c5 {[%emt 0:00:00]} 2. Nc3 {[%emt 0:00:00]} e6 {[%emt 0:00:00]} 3. Nf3 {[%emt 0:00:00]} Nf6 {[%emt 0:04:14]} 4. d4 {[%emt 0:00:39]} cxd4 {[%emt 0:00:17]} 5. Nxd4 {[%emt 0:00:07]} Nc6 {[%emt 0:00:11]} 6. Nxc6 {[%emt 0:00:44]} bxc6 {[%emt 0:00:11]} 7. e5 {[%emt 0:00:17]} Nd5 {[%emt 0:00:13]} 8. Ne4 {[%emt 0:00:19]} f5 {[%emt 0:00:18]} 9. exf6 {[%emt 0:11:43]} Nxf6 {[%emt 0:01:31]} 10. Nd6+ {[%emt 0:03:17]} Bxd6 {[%emt 0:00:08]} 11. Qxd6 {[%emt 0:00:05]} Ba6 {[%emt 0:01:08]} 12. Bxa6 {[%emt 0:01:50]} Qa5+ {[%emt 0:00:06]} 13. Bd2 {[%emt 0:00:08]} Qxa6 {[%emt 0:00:05]} 14. Bb4 {[%emt 0:02:34]} O-O-O {[%emt 0:04:59]} 15. Rd1 {[%emt 0:15:58]} e5 {[%emt 0:10:52]} 16. f3 {[%emt 0:10:40]} e4 {[%emt 0:13:16]} 17. f4 {[%emt 0:03:48]} Rhe8 {[%emt 0:08:34]} 18. c4 {[%emt 0:21:43]} e3 {[%emt 0:12:39]} 19. Qc5 {[%emt 0:15:19]} Ne4 {[%emt 0:08:45]} 20. Qa5 {[%emt 0:00:43]} Qxc4 {[%emt 0:03:12]} 21. Bc3 {[%emt 0:02:07]} Qb5 {[%emt 0:24:51]} 22. Rd4 {[%emt 0:02:11]} Nxc3 {[%emt 0:01:48]} 23. Qxc3 {[%emt 0:00:11] normal} 0-1

[Event "GER-ch Youth U18w 2019"]
[Site "Willingen"]
[Date "2019.06.15"]
[Round "9.3"]
[White "Moenster, Madita"]
[Black "Ratay, Meike"]
[Result "0-1"]
[ECO "B90"]
[WhiteElo "1994"]
[BlackElo "1991"]
[Annotator "NA"]
[PlyCount "59"]
[EventDate "2019.06.07"]
[EventType "swiss"]
[EventRounds "9"]
[EventCountry "GER"]
[SourceTitle "playchess.com"]
[Source "ChessBase"]
[SourceQuality "1"]
[TimeControl "40/5400+30:1800+30"]

1. e4 {[%emt 0:00:00]} c5 {[%emt 0:00:00]} 2. Nf3 {[%emt 0:00:00]} d6 {[%emt 0:00:00]} 3. d4 {[%emt 0:00:00]} Nf6 {[%emt 0:00:00]} 4. Nc3 {[%emt 0:00:02]} cxd4 {[%emt 0:00:00]} 5. Nxd4 {[%emt 0:00:11]} a6 {[%emt 0:00:00]} 6. f3 {[%emt 0:00:10]} e5 {[%emt 0:00:03]} 7. Nb3 {[%emt 0:00:06]} Be6 {[%emt 0:00:05]} 8. Be3 {[%emt 0:00:08]} Be7 {[%emt 0:00:13]} 9. Qd2 {[%emt 0:00:08]} O-O {[%emt 0:00:11]} 10. O-O-O {[%emt 0:00:08]} Nbd7 {[%emt 0:00:11]} 11. g4 {[%emt 0:00:15]} b5 {[%emt 0:00:06]} 12. g5 {[%emt 0:00:16]} Nh5 {[%emt 0:00:11] unterminated} 13. Kb1 {[%emt 0:03:25]} Qc7 {[%emt 0:02:05] unterminated} 14. h4 {[%emt 0:05:43] unterminated} Ng3 {[%emt 0:05:46]} 15. Rh2 {[%emt 0:06:53] unterminated} Nxf1 {[%emt 0:01:10]} 16. Rxf1 {[%emt 0:00:07] unterminated} b4 $11 {[%emt 0:10:54]} 17. Nd5 {[%emt 0:14:33]} Bxd5 {[%emt 0:00:17]} 18. Qxd5 {[%emt 0:02:02]} a5 {[%emt 0:08:30]} 19. h5 {[%emt 0:28:34]} a4 {[%emt 0:06:40]} 20. Na1 {[%emt 0:03:52]} a3 {[%emt 0:09:33]} 21. Qb3 {[%emt 0:04:13]} axb2 {[%emt 0:02:35]} 22. Qxb2 {[%emt 0:01:32]} Nc5 {[%emt 0:08:32]} 23. Bxc5 {[%emt 0:01:39]} Qxc5 {[%emt 0:01:36]} 24. g6 {[%emt 0:03:24]} Ra3 {[%emt 0:04:58]} 25. Nb3 {[%emt 0:02:05]} Qc4 {[%emt 0:04:44]} 26. Rg1 {[%emt 0:03:09]} h6 {[%emt 0:15:31]} 27. gxf7+ {[%emt 0:01:01]} Rxf7 {[%emt 0:00:11]} 28. Rhg2 {[%emt 0:04:28]} Bg5 {[%emt 0:03:44]} 29. Rd1 {[%emt 0:08:14]} Rfa7 {[%emt 0:04:35]} 30. Rf2 {[%emt 0:05:21] normal} 0-1

[Event "GER-ch Youth U18w 2019"]
[Site "Willingen"]
[Date "2019.06.15"]
[Round "9.4"]
[White "Nguyen, Ha Thanh"]
[Black "Reitz, Theresa"]
[Result "1/2-1/2"]
[ECO "B40"]
[WhiteElo "1940"]
[BlackElo "1976"]
[Annotator "NA"]
[PlyCount "59"]
[EventDate "2019.06.07"]
[EventType "swiss"]
[EventRounds "9"]
[EventCountry "GER"]
[SourceTitle "playchess.com"]
[Source "ChessBase"]
[SourceQuality "1"]
[TimeControl "40/5400+30:1800+30"]

1. e4 {[%emt 0:00:00]} c5 {[%emt 0:00:00]} 2. Nf3 {[%emt 0:00:00]} e6 {[%emt 0:00:00]} 3. d4 {[%emt 0:00:00]} cxd4 {[%emt 0:00:00]} 4. Nxd4 {[%emt 0:00:00]} Bc5 {[%emt 0:00:00]} 5. Nb5 {[%emt 0:00:10]} Qb6 {[%emt 0:01:09]} 6. Be3 {[%emt 0:00:33]} Bxe3 {[%emt 0:00:20]} 7. fxe3 {[%emt 0:00:05]} Nc6 {[%emt 0:02:17]} 8. N1c3 {[%emt 0:06:35]} Qxe3+ {[%emt 0:01:27]} 9. Be2 {[%emt 0:00:12]} Kf8 {[%emt 0:00:43] unterminated} 10. Rf1 {[%emt 0:03:41]} Nge7 {[%emt 0:05:53] unterminated} 11. Nd6 {[%emt 0:08:08] unterminated} f6 $15 {[%emt 0:12:25]} 12. Nc4 {[%emt 0:11:54]} Qg5 {[%emt 0:13:08]} 13. Rf2 {[%emt 0:05:38]} d5 {[%emt 0:09:00]} 14. exd5 {[%emt 0:08:22]} exd5 {[%emt 0:00:46]} 15. Qd2 {[%emt 0:00:54]} Qxd2+ {[%emt 0:00:47]} 16. Nxd2 {[%emt 0:00:05]} Kf7 {[%emt 0:11:13]} 17. O-O-O {[%emt 0:01:07]} Rd8 {[%emt 0:01:04]} 18. Nf3 {[%emt 0:01:23]} Kg8 {[%emt 0:02:13]} 19. Bb5 {[%emt 0:04:18]} Be6 {[%emt 0:06:31]} 20. Re2 {[%emt 0:03:56]} Bf7 {[%emt 0:06:04]} 21. Bxc6 {[%emt 0:00:23]} Nxc6 {[%emt 0:00:46]} 22. Red2 {[%emt 0:00:16]} Ne7 {[%emt 0:03:04]} 23. Kb1 {[%emt 0:00:40]} Rac8 {[%emt 0:01:26]} 24. a3 {[%emt 0:01:03]} Rd7 {[%emt 0:07:25]} 25. Nb5 {[%emt 0:02:01]} a6 {[%emt 0:00:50]} 26. Nc3 {[%emt 0:00:31]} Rcd8 {[%emt 0:07:16]} 27. Na4 {[%emt 0:01:29]} Rc7 {[%emt 0:01:41]} 28. Re1 {[%emt 0:06:18]} b5 {[%emt 0:04:11]} 29. Nc3 {[%emt 0:00:32]} Nc8 {[%emt 0:00:36]} 30. Nd4 {[%emt 0:01:56] normal} 1/2-1/2

[Event "GER-ch Youth U18w 2019"]
[Site "Willingen"]
[Date "2019.06.15"]
[Round "9.5"]
[White "Mundt, Alexandra"]
[Black "Moeller, Lisa-Marie"]
[Result "1/2-1/2"]
[ECO "A04"]
[WhiteElo "1797"]
[BlackElo "1900"]
[Annotator "NA"]
[PlyCount "80"]
[EventDate "2019.06.07"]
[EventType "swiss"]
[EventRounds "9"]
[EventCountry "GER"]
[SourceTitle "playchess.com"]
[Source "ChessBase"]
[SourceQuality "1"]
[TimeControl "40/5400+30:1800+30"]

1. Nf3 {[%emt 0:00:00]} c5 {[%emt 0:00:00]} 2. b3 {[%emt 0:00:00]} Nc6 {[%emt 0:00:00]} 3. Bb2 {[%emt 0:00:00]} d6 {[%emt 0:00:14]} 4. c4 {[%emt 0:00:53]} e5 {[%emt 0:01:10]} 5. d3 {[%emt 0:01:48]} g6 {[%emt 0:00:24]} 6. g3 {[%emt 0:01:08]} Bg7 {[%emt 0:01:36]} 7. Bg2 {[%emt 0:00:48]} Nge7 {[%emt 0:00:49]} 8. Nbd2 {[%emt 0:04:09]} O-O {[%emt 0:00:47]} 9. Qc2 {[%emt 0:03:59]} h6 {[%emt 0:02:44]} 10. a3 {[%emt 0:01:09]} a5 {[%emt 0:00:37]} 11. O-O {[%emt 0:06:32]} Be6 {[%emt 0:01:51]} 12. Nb1 f5 {[%emt 0:03:34]} 13. Nc3 {[%emt 0:04:21]} g5 {[%emt 0:08:14]} 14. e3 {[%emt 0:06:06]} f4 {[%emt 0:05:02]} 15. exf4 {[%emt 0:04:47]} gxf4 {[%emt 0:09:43]} 16. Ne4 {[%emt 0:07:00]} Ng6 {[%emt 0:04:42]} 17. Rab1 {[%emt 0:09:26]} Qd7 {[%emt 0:10:12]} 18. Bc3 {[%emt 0:09:20]} Nd4 {[%emt 0:12:00]} 19. Bxd4 {[%emt 0:08:29]} exd4 {[%emt 0:00:23]} 20. b4 {[%emt 0:02:54]} axb4 {[%emt 0:05:40]} 21. axb4 {[%emt 0:00:23]} b6 {[%emt 0:01:20]} 22. bxc5 {[%emt 0:02:59]} bxc5 {[%emt 0:00:16]} 23. Rb6 {[%emt 0:00:18]} Bg4 {[%emt 0:09:26]} 24. Rxd6 {[%emt 0:05:59]} Qf5 {[%emt 0:02:14]} 25. Rd5 {[%emt 0:02:53]} Ne5 {[%emt 0:05:41]} 26. Nh4 {[%emt 0:14:13]} Qf7 {[%emt 0:02:38]} 27. f3 {[%emt 0:02:12]} Be6 {[%emt 0:00:38]} 28. Rxc5 {[%emt 0:00:26]} Ra3 {[%emt 0:00:30]} 29. Nf2 {[%emt 0:00:52]} Rfa8 {[%emt 0:00:55]} 30. Qd2 {[%emt 0:00:49]} Rc3 {[%emt 0:02:27]} 31. Rb5 {[%emt 0:00:51]} Raa3 {[%emt 0:00:50]} 32. Rb8+ {[%emt 0:00:26]} Kh7 {[%emt 0:00:18]} 33. Qe2 {[%emt 0:00:34]} Bf5 {[%emt 0:01:27]} 34. Nxf5 {[%emt 0:00:23]} Qxf5 {[%emt 0:00:02]} 35. Bh3 {[%emt 0:00:28]} Qg6 {[%emt 0:00:49]} 36. Rb5 {[%emt 0:00:48]} fxg3 {[%emt 0:00:55]} 37. hxg3 {[%emt 0:00:26]} Qxg3+ {[%emt 0:00:33]} 38. Bg2 {[%emt 0:00:24]} Nxd3 {[%emt 0:01:49]} 39. Ne4 {[%emt 0:00:37]} Qh4 {[%emt 0:03:04]} 40. Nxc3 {[%emt 0:00:24]} Rxc3 {[%emt 0:00:30] normal} 1/2-1/2

[Event "GER-ch Youth U18w 2019"]
[Site "Willingen"]
[Date "2019.06.15"]
[Round "9.6"]
[White "Fock, Sana"]
[Black "Koehler, Inken"]
[Result "1/2-1/2"]
[ECO "B23"]
[WhiteElo "1796"]
[BlackElo "1975"]
[Annotator "NA"]
[PlyCount "65"]
[EventDate "2019.06.07"]
[EventType "swiss"]
[EventRounds "9"]
[EventCountry "GER"]
[SourceTitle "playchess.com"]
[Source "ChessBase"]
[SourceQuality "1"]
[TimeControl "40/5400+30:1800+30"]

1. e4 {[%emt 0:00:00]} c5 {[%emt 0:00:00]} 2. Nc3 {[%emt 0:00:00]} e6 {[%emt 0:00:00]} 3. f4 {[%emt 0:00:08]} d5 {[%emt 0:00:00]} 4. Bb5+ {[%emt 0:01:20]} Bd7 {[%emt 0:00:09]} 5. Bxd7+ {[%emt 0:01:33]} Qxd7 {[%emt 0:00:16]} 6. d3 {[%emt 0:07:19]} Nc6 {[%emt 0:01:05]} 7. Nf3 {[%emt 0:01:44]} Nge7 {[%emt 0:03:08]} 8. O-O {[%emt 0:01:38]} g6 {[%emt 0:01:37]} 9. Qe1 {[%emt 0:05:23] unterminated} Bg7 {[%emt 0:02:33]} 10. Kh1 {[%emt 0:10:08] unterminated} O-O-O {[%emt 0:05:32]} 11. a4 {[%emt 0:03:37] unterminated} h6 {[%emt 0:06:39] unterminated} 12. a5 {[%emt 0:04:54] unterminated} f6 {[%emt 0:06:01] unterminated} 13. Na4 {[%emt 0:07:13] unterminated} Qd6 $16 {[%emt 0:04:42]} 14. Qc3 {[%emt 0:04:23]} dxe4 {[%emt 0:02:48]} 15. dxe4 {[%emt 0:01:13]} g5 {[%emt 0:03:25]} 16. Qxc5 {[%emt 0:05:51]} gxf4 {[%emt 0:03:48]} 17. Qxd6 {[%emt 0:03:27]} Rxd6 {[%emt 0:00:07]} 18. Bxf4 {[%emt 0:00:21]} e5 {[%emt 0:01:11]} 19. Be3 {[%emt 0:01:30]} f5 {[%emt 0:08:49]} 20. Bc5 {[%emt 0:04:25]} Re6 {[%emt 0:00:32]} 21. Nc3 {[%emt 0:02:14]} fxe4 {[%emt 0:04:29]} 22. Nh4 {[%emt 0:03:14]} Bf6 {[%emt 0:07:08]} 23. Nf5 {[%emt 0:04:01]} Nxf5 {[%emt 0:00:30]} 24. Rxf5 {[%emt 0:00:05]} Nd4 {[%emt 0:00:32]} 25. Bxd4 {[%emt 0:09:34]} exd4 {[%emt 0:00:05]} 26. Nxe4 {[%emt 0:01:42]} Bd8 {[%emt 0:04:28]} 27. Nc5 {[%emt 0:04:02]} Re2 {[%emt 0:02:12]} 28. Nb3 {[%emt 0:02:37]} Rxc2 {[%emt 0:01:18]} 29. Nxd4 {[%emt 0:00:53]} Rxb2 {[%emt 0:00:32]} 30. Rc1+ {[%emt 0:01:23]} Kb8 {[%emt 0:00:22]} 31. Ne6 {[%emt 0:02:29]} Be7 {[%emt 0:05:27]} 32. h3 {[%emt 0:02:57]} Bd6 {[%emt 0:10:49]} 33. Nc5 {[%emt 0:00:35] normal} 1/2-1/2

[Event "GER-ch Youth U18w 2019"]
[Site "Willingen"]
[Date "2019.06.15"]
[Round "9.7"]
[White "Kobald, Jacqueline"]
[Black "Koenze, Heike"]
[Result "1-0"]
[ECO "C13"]
[WhiteElo "1839"]
[BlackElo "1919"]
[Annotator "NA"]
[PlyCount "69"]
[EventDate "2019.06.07"]
[EventType "swiss"]
[EventRounds "9"]
[EventCountry "GER"]
[SourceTitle "playchess.com"]
[Source "ChessBase"]
[SourceQuality "1"]
[TimeControl "40/5400+30:1800+30"]

1. e4 {[%emt 0:00:00]} e6 {[%emt 0:00:00]} 2. d4 {[%emt 0:00:00]} d5 {[%emt 0:00:00]} 3. Nc3 {[%emt 0:00:00]} Nf6 {[%emt 0:00:00]} 4. Bg5 {[%emt 0:00:26]} Be7 {[%emt 0:00:11]} 5. e5 {[%emt 0:00:18]} Nfd7 {[%emt 0:00:08]} 6. h4 {[%emt 0:00:36]} a6 {[%emt 0:04:33]} 7. Qg4 {[%emt 0:08:50]} Bxg5 {[%emt 0:01:44]} 8. hxg5 {[%emt 0:04:01]} c5 {[%emt 0:11:11]} 9. g6 {[%emt 0:13:02]} cxd4 {[%emt 0:00:10]} 10. Rxh7 {[%emt 0:09:24]} Rg8 {[%emt 0:01:02]} 11. gxf7+ {[%emt 0:01:30]} Kxf7 {[%emt 0:00:09]} 12. Qxd4 {[%emt 0:02:40]} Nc6 {[%emt 0:03:53]} 13. Qf4+ {[%emt 0:01:14]} Ke8 {[%emt 0:00:22]} 14. Nf3 {[%emt 0:00:54]} Qc7 {[%emt 0:04:01]} 15. Rh5 {[%emt 0:06:56]} Nf6 {[%emt 0:03:00]} 16. Rg5 {[%emt 0:05:29]} Nh7 {[%emt 0:01:19]} 17. Rg4 {[%emt 0:01:06]} g5 {[%emt 0:00:34]} 18. Qg3 {[%emt 0:02:15]} b5 {[%emt 0:01:21]} 19. Bd3 {[%emt 0:08:26]} Bb7 {[%emt 0:03:59]} 20. a3 {[%emt 0:04:30]} Rd8 {[%emt 0:05:57]} 21. Ne2 {[%emt 0:09:14]} Rd7 {[%emt 0:05:33]} 22. O-O-O {[%emt 0:01:58]} Rdg7 {[%emt 0:01:56]} 23. Ned4 {[%emt 0:01:46]} Nxd4 {[%emt 0:00:36]} 24. Nxd4 {[%emt 0:00:08]} Nf8 {[%emt 0:00:23]} 25. Rh1 {[%emt 0:03:28]} Qa5 {[%emt 0:01:27]} 26. Nb3 {[%emt 0:00:25]} Qb6 {[%emt 0:00:52]} 27. Rh5 {[%emt 0:01:43]} Kd7 {[%emt 0:01:22]} 28. Nd4 {[%emt 0:04:41]} b4 {[%emt 0:02:27]} 29. a4 {[%emt 0:01:33]} Kc8 {[%emt 0:04:48]} 30. Rh6 {[%emt 0:02:22]} b3 {[%emt 0:01:44]} 31. Nxb3 {[%emt 0:00:43]} Rf7 {[%emt 0:00:15]} 32. Qe3 {[%emt 0:01:39]} Qxe3+ {[%emt 0:01:51]} 33. fxe3 {[%emt 0:00:02]} Rc7 {[%emt 0:01:46]} 34. Nd4 {[%emt 0:00:24]} Kd7 {[%emt 0:00:35]} 35. Rh5 {[%emt 0:00:36] normal} 1-0